bitfinex/quotes_SOLUSD_20251128
["timestamp","ask_amount","ask_price","bid_price","bid_amount"]
[1764332301709,2.86969474,141.18,141.15,3.83]
[1764332301912,2.15969474,141.17,141.15,3.12]
[1764332302111,2.86969474,141.17,141.15,3.12]
[1764332302406,2.15969474,141.17,141.15,3.12]
[1764332302608,2.15969474,141.17,141.15,3.83]
[1764332302801,0.71,141.19,141.15,10.91458939]
[1764332302998,2.15969474,141.17,141.15,10.91458939]
[1764332304028,2.15969474,141.17,141.15,3.83]
[1764332304194,2.15969474,141.17,141.15,10.91462603]
[1764332304515,0.71,141.18,141.15,10.91462603]
[1764332304710,2.86969474,141.18,141.15,10.91462603]
[1764332304918,2.86969474,141.18,141.16,3.12]
[1764332307313,7.0825016,141.2,141.13,7.08521747]
[1764332307314,2.86969474,141.17,141.13,7.08521747]
[1764332307520,2.15969474,141.16,141.15,3.12]
[1764332307707,2.86969474,141.16,141.13,7.08521747]
[1764332307905,2.15969474,141.17,141.15,3.12]
[1764332309115,2.86969474,141.18,141.15,10.91460933]
[1764332310015,2.15969474,141.18,141.15,10.20460933]
[1764332310213,19.17855874,141.2,141.16,0.71]
[1764332310698,18.46855874,141.2,141.16,0.71]
[1764332310900,2.15969474,141.21,141.16,2.86969474]
[1764332311114,16.308864,141.2,141.16,2.86969474]
[1764332311306,16.308864,141.2,141.17,0.71]
[1764332312213,16.308864,141.2,141.18,7.08315625]
[1764332312709,16.308864,141.2,141.19,3.12]
[1764332314325,2.86969474,141.21,141.19,3.12]
[1764332314630,0.71,141.21,141.19,3.12]
[1764332314842,2.86969474,141.21,141.19,3.12]
[1764332315637,2.15969474,141.21,141.19,3.12]
[1764332316045,2.86969474,141.21,141.19,3.12]
[1764332317042,9.95136646,141.21,141.18,0.71]
[1764332317347,9.95136646,141.21,141.19,3.12]
[1764332317548,2.15969474,141.2,141.19,3.12]
[1764332317852,9.95136646,141.21,141.19,3.12]
[1764332321846,0.71,141.21,141.19,3.12]
[1764332324259,7.79173444,141.21,141.19,3.12]
[1764332325448,0.68,141.21,141.19,3.12]
[1764332326538,9.92103377,141.22,141.19,3.82]
[1764332327056,9.24103377,141.22,141.19,3.12]
[1764332327357,0.68,141.21,141.19,3.12]
[1764332327561,32.65639185,141.23,141.2,0.7]
[1764332327740,16.308864,141.21,141.2,0.7]
[1764332327932,16.308864,141.21,141.19,10.20262651]
[1764332328142,16.308864,141.21,141.19,10.90262651]
[1764332328962,9.240588,141.23,141.2,0.7]
[1764332329165,9.920588,141.23,141.2,0.7]
[1764332329537,0.68,141.22,141.19,10.90262651]
[1764332330650,7.76121339,141.22,141.19,10.20262651]
[1764332331051,0.68,141.21,141.19,10.20262651]
[1764332332674,0.68,141.21,141.2,3.12]
[1764332332871,7.76165412,141.21,141.16,4.07445441]
[1764332333049,11.13610853,141.21,141.19,3.12]
[1764332333248,0.68,141.2,141.19,3.12]
[1764332333960,0.68,141.2,141.18,3.12]
[1764332338154,0.68,141.2,141.17,7.78362507]
[1764332338477,0.68,141.2,141.18,3.12]
[1764332341460,7.762184,141.2,141.16,7.78395504]
[1764332341675,7.762184,141.2,141.17,3.12]
[1764332341861,0.68,141.19,141.17,3.12]
[1764332342376,4.05445441,141.19,141.15,7.0846331]
[1764332342557,4.05445441,141.19,141.16,3.12]
[1764332342758,0.68,141.18,141.16,3.12]
[1764332343596,0.68,141.18,141.16,3.82]
[1764332343758,0.68,141.2,141.17,0.7]
[1764332344481,0.68,141.2,141.16,10.90409301]
[1764332346004,7.76226378,141.2,141.16,10.90409301]
[1764332346206,0.68,141.19,141.16,10.90409301]
[1764332348223,0.68,141.19,141.17,3.12]
[1764332354121,0.72,141.22,141.18,0.68]
[1764332354321,0.72,141.21,141.18,0.68]
[1764332354611,147.67761652,141.23,141.18,4.05445441]
[1764332354813,16.308864,141.21,141.19,3.37445441]
[1764332355017,16.308864,141.21,141.19,4.05445441]
[1764332355191,16.308864,141.21,141.2,0.68]
[1764332355392,0.72,141.23,141.2,4.05445441]
[1764332355599,0.72,141.23,141.21,3.12]
[1764332355802,16.308864,141.22,141.21,3.12]
[1764332359397,17.018864,141.22,141.21,3.12]
[1764332359711,16.308864,141.22,141.21,3.12]
[1764332359929,17.018864,141.22,141.21,3.12]
[1764332363434,17.018864,141.22,141.19,11.14704265]
[1764332363638,17.018864,141.22,141.21,3.12]
[1764332365139,24.10001397,141.22,141.21,3.12]
[1764332365732,17.018864,141.22,141.21,3.12]
[1764332368328,7.0821456,141.24,141.21,7.18445441]
[1764332368528,0.71,141.28,141.23,3.37445441]
[1764332368841,7.78823205,141.28,141.25,3.37445441]
[1764332369143,7.78823205,141.28,141.24,6.49445441]
[1764332369341,0.71,141.27,141.24,6.49445441]
[1764332369637,0.71,141.27,141.24,10.89014324]
[1764332370631,0.71,141.27,141.24,14.26459765]
[1764332371141,0.71,141.27,141.25,3.37445441]
[1764332371343,7.98781596,141.29,141.25,4.06445441]
[1764332371557,0.71,141.28,141.25,11.14396207]
[1764332372045,0.71,141.28,141.26,3.37445441]
[1764332372342,0.71,141.28,141.25,0.69]
[1764332372530,0.71,141.28,141.25,4.06445441]
[1764332372732,0.71,141.28,141.26,3.12]
[1764332373346,0.71,141.28,141.25,11.14409682]
[1764332373545,0.71,141.28,141.26,3.12]
[1764332374538,7.78819378,141.28,141.26,3.12]
[1764332374957,0.71,141.28,141.26,3.12]
[1764332377156,0.71,141.28,141.25,11.14402258]
[1764332377358,0.71,141.28,141.27,3.12]
[1764332378033,0.71,141.28,141.25,11.14402258]
[1764332378247,0.71,141.28,141.26,3.12]
[1764332379961,0.2,141.29,141.26,7.18445441]
[1764332380263,16.308864,141.28,141.27,3.37445441]
[1764332381457,16.308864,141.28,141.26,14.26323038]
[1764332381646,16.308864,141.28,141.26,10.88877597]
[1764332381845,16.308864,141.28,141.26,14.26323038]
[1764332382772,17.218864,141.29,141.26,13.57323038]
[1764332382951,17.218864,141.29,141.26,14.26323038]
[1764332386251,24.29650857,141.29,141.26,14.26323038]
[1764332387269,24.29650857,141.29,141.26,7.18445441]
[1764332387570,0.68,141.28,141.27,3.12]
[1764332388875,16.988864,141.28,141.27,3.12]
[1764332389368,16.308864,141.28,141.27,3.12]
[1764332389955,0.88,141.29,141.27,3.12]
[1764332390160,0.2,141.29,141.27,3.81]
[1764332390472,0.2,141.29,141.27,7.18445441]
[1764332390968,0.88,141.29,141.27,3.81]
[1764332392773,0.2,141.29,141.27,10.88854208]
[1764332393176,0.2,141.29,141.27,10.19854208]
[1764332393364,0.2,141.29,141.28,2.84715232]
[1764332395059,0.2,141.29,141.28,9.92529501]
[1764332396672,0.2,141.29,141.28,13.04529501]
[1764332398779,0.2,141.29,141.28,9.23529501]
[1764332398983,0.2,141.29,141.28,12.35529501]
[1764332399363,0.2,141.29,141.28,13.04529501]
[1764332399559,0.2,141.29,141.28,9.23529501]
[1764332399764,0.2,141.29,141.28,13.04529501]
[1764332400986,0.2,141.29,141.28,7.07814269]
[1764332401192,0.88,141.29,141.26,9.92612455]
[1764332401388,0.88,141.29,141.27,3.12]
[1764332403074,0.88,141.29,141.28,9.92529501]
[1764332403075,0.2,141.29,141.28,9.92529501]
[1764332406095,1e-08,141.29,141.28,10.20961815]
[1764332406388,0.2,141.35,141.28,88.41449727]
[1764332406595,0.2,141.35,141.34,2.15715232]
[1764332406781,0.2,141.35,141.34,5.27715232]
[1764332407109,0.2,141.35,141.34,13.04229028]
[1764332407691,0.2,141.35,141.34,10.88513796]
[1764332407880,0.2,141.35,141.34,13.04229028]
[1764332418812,0.86,141.35,141.34,12.35229028]
[1764332419016,0.2,141.35,141.34,12.35229028]
[1764332419324,0.2,141.35,141.34,13.03229028]
[1764332424922,0.2,141.37,141.35,0.68]
[1764332425123,0.2,141.37,141.36,5.27715232]
[1764332425545,0.2,141.37,141.36,5.95715232]
[1764332427456,0.2,141.37,141.36,13.03128927]
[1764332432272,1e-08,141.37,141.36,13.03128927]
[1764332433268,1e-08,141.37,141.36,22.12555733]
[1764332433473,1e-08,141.37,141.36,19.96840501]
[1764332433646,1e-08,141.37,141.36,22.12555733]
[1764332434468,0.2,141.39,141.36,22.12555733]
[1764332434469,1e-08,141.39,141.37,26.08313206]
[1764332434672,1e-08,141.39,141.38,14.37142038]
[1764332434858,1e-08,141.39,141.38,15.05142038]
[1764332435358,1e-08,141.39,141.38,11.93142038]
[1764332435576,1e-08,141.39,141.38,15.05142038]
[1764332436074,0.66000001,141.39,141.38,5.27715232]
[1764332436370,1e-08,141.39,141.38,12.35028854]
[1764332436556,1e-08,141.39,141.38,9.23028854]
[1764332436557,0.66000001,141.39,141.38,9.23028854]
[1764332436753,0.66000001,141.39,141.38,7.07313622]
[1764332436959,0.66000001,141.39,141.38,10.19313622]
[1764332437971,1e-08,141.39,141.38,12.35028854]
[1764332438855,0.66000001,141.39,141.38,12.35028854]
[1764332442473,0.66000001,141.39,141.38,10.19313622]
[1764332442865,0.68000001,141.39,141.38,12.35028854]
[1764332443270,1e-08,141.39,141.38,13.02028854]
[1764332443583,1e-08,141.39,141.38,22.1145566]
[1764332446678,1e-08,141.39,141.38,9.90028854]
[1764332446858,1e-08,141.39,141.38,13.02028854]
[1764332452790,1e-08,141.39,141.38,14.22664522]
[1764332453170,1e-08,141.39,141.38,13.55664522]
[1764332453369,1e-08,141.39,141.38,14.22664522]
[1764332462168,1e-08,141.39,141.38,13.55664522]
[1764332462474,1e-08,141.39,141.38,10.43664522]
[1764332462674,1e-08,141.39,141.38,13.55664522]
[1764332463190,1e-08,141.39,141.38,10.43664522]
[1764332463489,1e-08,141.39,141.38,13.55664522]
[1764332463895,1e-08,141.39,141.38,11.10664522]
[1764332464090,1e-08,141.39,141.38,14.22664522]
[1764332466299,1e-08,141.39,141.38,23.32091328]
[1764332466783,1e-08,141.39,141.38,13.55664522]
[1764332467489,1e-08,141.39,141.38,23.32091328]
[1764332467690,1e-08,141.39,141.38,20.20091328]
[1764332467896,1e-08,141.39,141.38,23.32091328]
[1764332476610,1e-08,141.39,141.38,22.65091328]
[1764332476811,0.67000001,141.39,141.38,10.43664522]
[1764332477107,0.67000001,141.39,141.38,13.55664522]
[1764332477987,0.67000001,141.39,141.38,10.43664522]
[1764332478194,0.67000001,141.39,141.38,13.55664522]
[1764332480011,0.67000001,141.39,141.38,10.43664522]
[1764332480314,0.67000001,141.39,141.38,13.55664522]
[1764332487714,0.2,141.41,141.38,31.23948579]
[1764332487924,0.2,141.41,141.39,3.12]
[1764332488922,0.2,141.41,141.4,7.07213578]
[1764332489828,0.87,141.41,141.4,7.07213578]
[1764332496024,0.87,141.41,141.37,7.07363655]
[1764332496213,4.033509,141.4,141.38,3.12]
[1764332496721,0.67,141.39,141.38,3.12]
[1764332498229,0.67,141.39,141.38,10.19313622]
[1764332499925,0.67,141.39,141.38,3.12]
[1764332500400,0.67,141.39,141.38,10.19313622]
[1764332500605,0.88,141.41,141.38,31.91948579]
[1764332501028,0.68,141.4,141.38,31.91948579]
[1764332501215,0.68,141.4,141.38,27.87597679]
[1764332503628,0.2,141.41,141.38,27.87597679]
[1764332503818,0.88,141.41,141.38,31.91948579]
[1764332504723,0.68,141.4,141.39,3.363509]
[1764332504921,0.68,141.4,141.39,10.43614497]
[1764332507320,0.68,141.4,141.39,7.07263597]
[1764332508938,0.68,141.4,141.38,7.07313622]
[1764332509116,0.68,141.4,141.39,3.12]
[1764332509434,14.34766678,141.4,141.37,7.07348636]
[1764332509629,3.363509,141.38,141.32,4.043509]
[1764332509973,3.363509,141.37,141.33,3.12]
[1764332510114,0.68,141.36,141.33,3.12]
[1764332510439,0.68,141.36,141.32,4.043509]
[1764332510440,0.68,141.36,141.34,3.12]
[1764332510850,0.68,141.36,141.34,10.19501087]
[1764332511051,0.68,141.36,141.34,3.12]
[1764332511229,3.363509,141.35,141.32,7.07598607]
[1764332511414,3.363509,141.35,141.33,3.12]
[1764332511613,0.68,141.34,141.33,3.12]
[1764332512851,0.68,141.34,141.33,10.19563857]
[1764332516345,0.68,141.36,141.33,10.19563857]
[1764332516546,0.68,141.35,141.33,10.19563857]
[1764332518852,0.68,141.35,141.33,3.12]
[1764332519030,18.37106526,141.35,141.33,10.19561132]
[1764332519426,0.68,141.34,141.33,3.12]
[1764332520850,0.68,141.34,141.33,10.19563857]
[1764332521152,18.37106526,141.35,141.33,10.19563857]
[1764332522052,0.68,141.34,141.33,10.19563857]
[1764332522228,17.69106526,141.35,141.33,10.19563857]
[1764332522428,17.69106526,141.35,141.3,7.07696865]
[1764332522429,2.83549232,141.34,141.3,7.07696865]
[1764332522638,2.15549232,141.33,141.31,3.12]
[1764332522954,0.68,141.33,141.31,3.12]
[1764332523151,0.68,141.32,141.31,3.12]
[1764332523346,0.68,141.32,141.29,7.07743201]
[1764332523546,0.68,141.32,141.3,3.12]
[1764332523747,0.68,141.32,141.3,10.19697028]
[1764332525346,0.68,141.32,141.3,3.12]
[1764332525931,19.05474723,141.32,141.3,3.12]
[1764332526144,19.05474723,141.32,141.3,10.19703226]
[1764332526346,0.68,141.32,141.3,10.19703226]
[1764332526538,16.988864,141.32,141.3,10.19703226]
[1764332528239,16.308864,141.32,141.3,10.87703226]
[1764332528451,19.14435632,141.35,141.31,0.68]
[1764332528747,16.308864,141.34,141.31,0.68]
[1764332528954,16.308864,141.34,141.32,2.15549232]
[1764332529141,0.68,141.36,141.33,5.27549232]
[1764332529339,21.93775022,141.36,141.33,5.27549232]
[1764332529658,0.68,141.37,141.34,0.68]
[1764332529847,21.93624402,141.37,141.33,5.95549232]
[1764332530361,0.68,141.36,141.34,7.07513796]
[1764332532274,21.25624402,141.37,141.34,7.07513796]
[1764332532438,21.93624402,141.37,141.34,7.78513796]
[1764332532635,2.15549232,141.35,141.3,20.55759335]
[1764332532839,2.15549232,141.35,141.31,10.19664001]
[1764332533039,0.68,141.34,141.31,10.19664001]
[1764332533261,21.23759335,141.34,141.31,10.19664001]
[1764332533764,21.23759335,141.34,141.31,10.90664001]
[1764332535759,0.68,141.33,141.31,10.19664001]
[1764332535966,9.23021325,141.35,141.31,10.90664001]
[1764332535967,20.52759335,141.34,141.31,10.90664001]
[1764332536466,0.28432314,141.38,141.31,10.90664001]
[1764332536467,10.96543724,141.39,141.33,2.15549232]
[1764332536672,0.88,141.41,141.37,2.15549232]
[1764332536848,0.88,141.41,141.38,3.12]
[1764332537048,0.68,141.4,141.38,3.12]
[1764332537272,17.693589,141.4,141.38,3.12]
[1764332537452,0.88,141.41,141.38,3.83]
[1764332537644,4.0,141.41,141.38,12.34855125]
[1764332537969,0.88,141.41,141.39,2.15549232]
[1764332538142,0.88,141.41,141.4,2.15549232]
[1764332539542,0.88,141.41,141.39,3.12]
[1764332539763,0.71,141.4,141.39,3.12]
[1764332540069,0.71,141.4,141.39,5.27549232]
[1764332541069,0.71,141.4,141.39,3.12]
[1764332543870,7.78351634,141.4,141.39,3.12]
[1764332544074,7.78351634,141.4,141.39,5.27549232]
[1764332545676,7.78351634,141.4,141.39,3.12]
[1764332549181,7.07351634,141.4,141.39,12.99812829]
[1764332549558,0.2,141.41,141.39,12.99812829]
[1764332549762,0.2,141.41,141.4,9.8776281]
[1764332553083,0.2,141.41,141.4,2.80549232]
[1764332553381,0.2,141.41,141.4,9.8776281]
[1764332555188,0.2,141.41,141.4,9.2276281]
[1764332555383,0.2,141.41,141.4,9.8776281]
[1764332556586,0.91,141.41,141.4,3.12]
[1764332558181,11.21365061,141.41,141.4,3.12]
[1764332560161,10.50365061,141.41,141.4,3.12]
[1764332560985,11.20365061,141.41,141.4,3.12]
[1764332562465,11.20365061,141.41,141.38,2.15549232]
[1764332562466,11.20365061,141.41,141.38,9.22843053]
[1764332562671,0.7,141.4,141.39,3.12]
[1764332563067,7.77293821,141.4,141.39,3.12]
[1764332565188,0.7,141.4,141.39,3.12]
[1764332565510,9.92782976,141.4,141.35,2.15549232]
[1764332565671,9.92782976,141.4,141.36,3.12]
[1764332565867,0.7,141.39,141.37,2.15549232]
[1764332566603,17.208864,141.41,141.38,2.87549232]
[1764332566774,17.208864,141.41,141.39,3.12]
[1764332568095,0.7,141.4,141.39,3.12]
[1764332570495,7.77238694,141.4,141.36,9.22943614]
[1764332570675,9.92787926,141.4,141.37,3.12]
[1764332570874,0.7,141.39,141.37,3.12]
[1764332572406,9.9282709,141.39,141.33,0.72]
[1764332572701,9.9282709,141.39,141.34,5.27549232]
[1764332572879,0.7,141.38,141.34,5.99549232]
[1764332573073,7.77277858,141.39,141.35,2.87549232]
[1764332573489,0.7,141.38,141.35,9.94981119]
[1764332574200,7.07215833,141.4,141.37,2.15549232]
[1764332574401,17.208864,141.41,141.38,3.12]
[1764332574610,0.7,141.4,141.38,3.12]
[1764332575300,7.77228903,141.4,141.38,3.12]
[1764332580988,4.06573149,141.39,141.34,3.36573149]
[1764332581299,4.06573149,141.39,141.36,3.12]
[1764332581505,0.7,141.38,141.36,3.12]
[1764332585123,23.38153202,141.39,141.36,10.9141355]
[1764332585292,24.08153202,141.39,141.37,3.12]
[1764332586511,16.308864,141.39,141.37,3.84]
[1764332587009,0.7,141.4,141.37,3.84]
[1764332587612,7.77238548,141.4,141.37,3.84]
[1764332588115,7.77238548,141.4,141.37,3.12]
[1764332588116,0.7,141.39,141.37,3.12]
[1764332588302,7.07238548,141.4,141.37,3.12]
[1764332588488,7.77238548,141.4,141.37,3.84]
[1764332589905,7.07238548,141.4,141.37,3.84]
[1764332590103,0.7,141.39,141.37,3.12]
[1764332590907,11.11811697,141.4,141.37,3.12]
[1764332591092,11.11811697,141.4,141.37,3.84]
[1764332592209,19.87459549,141.41,141.38,0.72]
[1764332592536,16.508864,141.41,141.38,0.72]
[1764332592720,3.36573149,141.39,141.38,3.12]
[1764332592891,4.04573149,141.4,141.38,3.12]
[1764332593201,0.68,141.39,141.38,3.12]
[1764332595592,7.75282952,141.39,141.36,0.72]
[1764332595792,7.75282952,141.39,141.37,3.12]
[1764332597928,0.72,141.4,141.37,3.78]
[1764332598120,0.72,141.39,141.36,7.73400554]
[1764332598332,7.79226944,141.4,141.37,3.12]
[1764332598633,0.72,141.39,141.37,3.12]
[1764332598814,0.72,141.39,141.37,3.78]
[1764332601133,0.2,141.41,141.38,4.02573149]
[1764332601332,0.2,141.41,141.4,3.36573149]
[1764332601703,0.2,141.41,141.4,0.66]
[1764332603302,0.2,141.41,141.4,7.73213578]
[1764332605236,0.2,141.41,141.4,14.21786727]
[1764332605612,0.92,141.41,141.34,24.76298287]
[1764332605947,3.36573149,141.4,141.36,0.66]
[1764332606115,20.59459549,141.41,141.36,0.66]
[1764332606315,0.72,141.4,141.37,3.12]
[1764332606722,0.72,141.4,141.37,3.78]
[1764332607120,3.36573149,141.39,141.35,7.73442824]
[1764332607439,3.36573149,141.39,141.36,3.12]
[1764332607627,0.72,141.38,141.36,3.12]
[1764332611142,11.15888558,141.38,141.33,0.66]
[1764332611352,3.36573149,141.36,141.34,3.12]
[1764332611850,4.08573149,141.36,141.34,3.12]
[1764332612426,3.36573149,141.35,141.34,3.12]
[1764332612650,4.08573149,141.36,141.34,3.12]
[1764332613844,11.16001732,141.36,141.34,3.12]
[1764332614050,4.08573149,141.36,141.34,3.12]
[1764332614230,4.08573149,141.36,141.32,7.73597158]
[1764332614231,0.72,141.36,141.32,7.73597158]
[1764332614430,0.72,141.36,141.33,3.78]
[1764332617339,11.1599423,141.36,141.32,7.07597158]
[1764332617543,3.36573149,141.35,141.32,10.85597158]
[1764332617756,4.08573149,141.35,141.32,10.85597158]
[1764332618127,3.36573149,141.35,141.33,0.66]
[1764332618648,0.72,141.34,141.31,0.66]
[1764332618858,3.36573149,141.33,141.3,3.12]
[1764332619238,0.72,141.33,141.3,3.78]
[1764332619943,11.16090994,141.34,141.3,3.78]
[1764332620145,19.67459549,141.36,141.31,4.02573149]
[1764332620344,20.39459549,141.36,141.31,4.02573149]
[1764332620542,16.308864,141.36,141.32,4.02573149]
[1764332620859,16.308864,141.36,141.32,0.66]
[1764332621150,17.018864,141.36,141.33,0.68]
[1764332621337,24.09307873,141.36,141.33,0.68]
[1764332621660,27.45881022,141.36,141.33,0.68]
[1764332622954,4.07573149,141.35,141.31,7.75641625]
[1764332623566,4.07573149,141.35,141.32,0.68]
[1764332623769,26.74881022,141.36,141.32,0.68]
[1764332623930,27.45881022,141.36,141.32,0.68]
[1764332624130,0.71,141.35,141.32,7.75589367]
[1764332627834,4.07573149,141.35,141.32,7.75589367]
[1764332628042,4.07573149,141.35,141.33,3.12]
[1764332628964,0.71,141.35,141.33,3.12]
[1764332629357,48.2716623,141.36,141.33,3.12]
[1764332629959,47.5616623,141.36,141.33,3.12]
[1764332630163,0.71,141.35,141.33,3.12]
[1764332630567,7.78479056,141.35,141.33,3.12]
[1764332633266,14.86118269,141.35,141.33,3.12]
[1764332633634,14.86118269,141.35,141.32,3.8]
[1764332635938,17.01700439,141.35,141.32,3.8]
[1764332636577,2.1558217,141.33,141.3,3.12]
[1764332637042,2.1558217,141.33,141.3,3.8]
[1764332637248,2.8658217,141.33,141.3,3.8]
[1764332637944,17.01909848,141.33,141.3,3.8]
[1764332638152,0.71,141.32,141.26,2.1558217]
[1764332638471,17.69840562,141.31,141.27,3.12]
[1764332638676,17.69840562,141.31,141.28,0.68]
[1764332638968,18.40840562,141.31,141.28,0.68]
[1764332639375,0.71,141.31,141.28,0.68]
[1764332639545,7.07953238,141.3,141.28,0.68]
[1764332640072,7.07953238,141.3,141.28,9.9137773]
[1764332640361,16.308864,141.33,141.29,2.1558217]
[1764332640534,26.9326413,141.33,141.29,2.8358217]
[1764332640868,34.00844807,141.33,141.3,0.68]
[1764332641274,26.9326413,141.33,141.3,0.68]
[1764332641841,34.00830977,141.33,141.3,0.68]
[1764332646586,33.29830977,141.33,141.3,0.68]
[1764332648682,34.00830977,141.33,141.3,0.68]
[1764332655451,16.308864,141.33,141.3,7.75701842]
[1764332655859,16.308864,141.33,141.31,3.77]
[1764332658575,16.308864,141.33,141.32,0.65]
[1764332659556,16.308864,141.33,141.31,3.12]
[1764332659757,16.308864,141.33,141.31,3.77]
[1764332661558,23.38451533,141.33,141.31,3.77]
[1764332662794,0.66,141.32,141.3,3.12]
[1764332662985,26.20033703,141.33,141.3,3.77]
[1764332663174,41.73938366,141.33,141.3,3.77]
[1764332663373,43.89520536,141.33,141.3,3.77]
[1764332665191,43.23520536,141.33,141.3,3.12]
[1764332665362,0.66,141.32,141.3,3.12]
[1764332667620,7.73634733,141.32,141.3,3.12]
[1764332668496,7.73634733,141.32,141.3,3.77]
[1764332668968,7.73634733,141.32,141.3,3.12]
[1764332669584,7.07634733,141.32,141.3,3.12]
[1764332669791,28.66057131,141.33,141.3,3.77]
[1764332669998,29.32057131,141.33,141.3,3.77]
[1764332674174,2.8158217,141.32,141.29,3.12]
[1764332674378,2.8158217,141.32,141.3,0.65]
[1764332674585,9.89339566,141.32,141.3,0.65]
[1764332674972,9.23339566,141.32,141.3,0.65]
[1764332676469,9.23339566,141.32,141.29,10.19758687]
[1764332676685,9.89339566,141.32,141.29,10.84758687]
[1764332677392,16.30957966,141.32,141.3,0.65]
[1764332677984,16.96957966,141.32,141.29,3.77]
[1764332678794,16.96957966,141.32,141.29,3.12]
[1764332679095,16.96957966,141.32,141.3,0.65]
[1764332680100,16.96957966,141.32,141.29,3.12]
[1764332680392,7.73665603,141.31,141.29,3.12]
[1764332680575,7.07665603,141.31,141.29,3.78]
[1764332681195,7.07665603,141.31,141.29,0.66]
[1764332682193,9.23247773,141.31,141.29,0.66]
[1764332682493,0.72,141.3,141.24,17.79958696]
[1764332682676,0.72,141.3,141.26,0.66]
[1764332682677,2.1558217,141.29,141.26,0.66]
[1764332683077,12.10829943,141.29,141.26,0.66]
[1764332683380,2.8758217,141.29,141.26,0.66]
[1764332683575,3.12,141.28,141.25,7.07964601]
[1764332683784,3.84,141.28,141.25,10.85964601]
[1764332685002,3.12,141.28,141.26,0.66]
[1764332685385,9.95386019,141.29,141.26,0.66]
[1764332685593,20.15345204,141.29,141.26,0.66]
[1764332686088,9.95386019,141.29,141.26,0.66]
[1764332686288,10.91959185,141.28,141.25,3.12]
[1764332686493,10.19959185,141.28,141.26,0.66]
[1764332686676,2.1558217,141.29,141.26,0.66]
[1764332686876,20.15316444,141.29,141.26,0.66]
[1764332687294,9.95354768,141.29,141.26,0.66]
[1764332687597,10.19961676,141.28,141.26,0.66]
[1764332693205,10.19961676,141.28,141.25,10.19961676]
[1764332693403,0.72,141.27,141.25,7.07961676]
[1764332693705,0.72,141.27,141.25,10.85961676]
[1764332693909,7.07772598,141.29,141.25,10.85961676]
[1764332694101,10.19961676,141.27,141.25,10.85961676]
[1764332696309,10.19961676,141.27,141.26,7.73914483]
[1764332696497,7.07772598,141.29,141.26,7.73914483]
[1764332696695,7.73914483,141.28,141.26,7.73914483]
[1764332697497,7.73914483,141.28,141.27,0.66]
[1764332698101,7.73914483,141.28,141.26,7.07914483]
[1764332698308,7.73914483,141.28,141.26,7.73914483]
[1764332699814,7.73914483,141.28,141.26,7.07914483]
[1764332700313,7.73914483,141.28,141.26,7.73914483]
[1764332701603,0.72,141.27,141.24,0.76]
[1764332701805,3.37101838,141.25,141.24,0.1]
[1764332702292,11.93220582,141.25,141.24,0.1]
[1764332702912,11.21220582,141.25,141.24,0.1]
[1764332704518,11.93220582,141.25,141.24,0.1]
[1764332706917,19.01185183,141.25,141.24,0.1]
[1764332709004,27.82179675,141.25,141.24,0.1]
[1764332709205,44.13066075,141.25,141.24,0.1]
[1764332709400,28.10611989,141.25,141.24,0.1]
[1764332711106,31.80713627,141.25,141.24,0.1]
[1764332717529,27.43179475,141.25,141.24,0.1]
[1764332717736,14.92083345,141.25,141.24,0.1]
[1764332717919,31.22969745,141.25,141.24,0.1]
[1764332718300,34.60071583,141.25,141.24,0.1]
[1764332718719,18.29185183,141.25,141.24,0.1]
[1764332718917,28.09611989,141.25,141.23,0.1]